Workbook

Sheet 1-2016
A1: Vozač | B1: Slobodan | C1: BH1954563DE | E1: Mjesec | F1: 1 | G1: 2016 | M1: =X5 -> 22.80555556 | W1: 32 | X1: Unos maksimalne potrošnje lit/100
O3: Prosjek | P3: Prosjek | Q3: Prosjek
A4: SALDO: | B4: =IF(C4-D4-E4-F4-G4,C4-D4-E4-F4-G4,"0.00") -> 0.00 | C4: =SUM(C7:C37) -> 0 | D4: =SUM(D7:D37) -> 0 | E4: =SUM(E7:E37) -> 0 | F4: =SUM(F7:F37) -> 0 | G4: =SUM(G7:G37) -> 0 | H4: CENA PREVOZA | K4: Ukupno goriva | L4: =SUM(K7:K37) -> 200 | M4: Ukupno pređeno kilometara | N4: =SUM(N7:N37) -> 1100 | O4: =L4*100/N4 -> 18.18181818 | P4: =AVERAGEIF(P7:P37, "<>0") -> 11 | Q4: =AVERAGEIF(Q7:Q37, "<>0") -> 3.5 | U4: Pros. obe ture tonaza | V4: Unos optim.potrosnje | W4: Kooficijent po toni | X4: Ukupn.Prosjek potrošnje lit/100 | Y4: Valuta EUR
H5: =SUM(H7:H37) -> 0 | I5: =SUM(I7:I37) -> 0 | J5: =SUM(J7:J37) -> 0 | S5: 0.1 | U5: =AVERAGE(P4,Q4) -> 7.25 | V5: 22 | W5: 0.005 | X5: =AVERAGE(Y7:Y15) -> 22.80555556 | Y5: 1.95583
A6: Datum | B6: Vrsta prihoda-rashoda | C6: PRIHOD | D6: RASHOD KM | E6: Nagrade | F6: Prekovrem.rad | G6: Plata | H6: EUR | I6: KM | J6: Ukupno KM | K6: Količina Lit | L6: Početno stanje Km | M6: Završno stanje Km | N6: Ukupno Km | O6: Lit/100 | P6: Tonaza u polasku | Q6: Tonaza u povratku | S6: lit/100 | T6: % | U6: Osnova za platu | V6: Gorivi po toni/polazak | W6: Gorivi po toni/povratak | X6: Prosjek za obracun | Y6: Gorivi pol/pov po turi
J7: =H7*Y5+I7 -> 0 | K7: 200 | L7: 100 | M7: 1200 | N7: =M7-L7 -> 1100 | O7: =IFERROR(K7*100/N7," ") -> 18.18181818 | P7: 10 | Q7: 3 | S7: 28.00 | T7: 0.14 | U7: =J7*S5 -> 0 | V7: =P7*W5*100 -> 5 | W7: =Q7*W5*100 -> 1.5 | X7: =AVERAGE(V7,W7) -> 3.25 | Y7: =V5+X7 -> 25.25
J8: =H8*Y5+I8 -> 0 | N8: =M8-L8 -> 0 | P8: 12 | Q8: 4 | S8: 28.50 | T8: 13.50% | U8: =J8*S5 -> 0 | V8: =P8*W5*100 -> 6 | W8: =Q8*W5*100 -> 2 | X8: =AVERAGE(V8,W8) -> 4 | Y8: =V5+X8 -> 26
J9: =H9*Y5+I9 -> 0 | N9: =M9-L9 -> 0 | S9: 29 | T9: 0.13 | V9: =P9*W5*100 -> 0 | W9: =Q9*W5*100 -> 0 | X9: =AVERAGE(V9,W9) -> 0 | Y9: =V5+X9 -> 22
J10: =H10*Y5+I10 -> 0 | N10: 0 | S10: 29.50 | T10: 12.20% | V10: =P10*W5*100 -> 0 | W10: =Q10*W5*100 -> 0 | X10: =AVERAGE(V10,W10) -> 0 | Y10: =V5+X10 -> 22
J11: =H11*Y5+I11 -> 0 | N11: 0 | S11: 30 | T11: 11.8% | V11: =P11*W5*100 -> 0 | W11: =Q11*W5*100 -> 0 | X11: 0 | Y11: =V5+X11 -> 22
J12: =H12*Y5+I12 -> 0 | N12: 0 | S12: 31 | T12: 11.3% | V12: =P12*W5*100 -> 0 | W12: =Q12*W5*100 -> 0 | X12: 0 | Y12: =V5+X12 -> 22
J13: =H13*Y5+I13 -> 0 | N13: 0 | S13: 31.50 | T13: 0.11 | V13: =P13*W5*100 -> 0 | W13: =Q13*W5*100 -> 0 | X13: 0 | Y13: =V5+X13 -> 22
J14: =H14*Y5+I14 -> 0 | N14: 0 | S14: 32 | T14: 10.80% | V14: =P14*W5*100 -> 0 | W14: =Q14*W5*100 -> 0 | X14: 0 | Y14: =V5+X14 -> 22
J15: =H15*Y5+I15 -> 0 | N15: 0 | S15: 32.50 | T15: 10.30% | V15: =P15*W5*100 -> 0 | W15: =Q15*W5*100 -> 0 | X15: 0 | Y15: =V5+X15 -> 22
J16: =H16*Y5+I16 -> 0 | N16: 0 | S16: 33 | T16: 10.20% | V16: =P16*W5*100 -> 0 | W16: =Q16*W5*100 -> 0 | X16: 0 | Y16: =V5+X16 -> 22
J17: =H17*Y5+I17 -> 0 | N17: 0 | S17: 33.50 | T17: 0.1 | V17: =P17*W5*100 -> 0 | W17: =Q17*W5*100 -> 0 | X17: 0 | Y17: =V5+X17 -> 22
J18: =H18*Y5+I18 -> 0 | N18: 0 | S18: 34 | T18: 9.80% | V18: =P18*W5*100 -> 0 | W18: =Q18*W5*100 -> 0 | X18: 0 | Y18: =V5+X18 -> 22
J19: =H19*Y5+I19 -> 0 | N19: 0 | S19: 34.50 | T19: 9.60% | V19: =P19*W5*100 -> 0 | W19: =Q19*W5*100 -> 0 | X19: 0 | Y19: =V5+X19 -> 22
J20: =H20*Y5+I20 -> 0 | N20: 0 | S20: 35 | T20: 9.30% | V20: =P20*W5*100 -> 0 | W20: =Q20*W5*100 -> 0 | X20: 0 | Y20: =V5+X20 -> 22
J21: =H21*Y5+I21 -> 0 | N21: 0 | S21: 35.50 | T21: 9.00% | V21: =P21*W5*100 -> 0 | W21: =Q21*W55*100 -> 0 | X21: 0 | Y21: =V5+X21 -> 22
J22: =H22*Y5+I22 -> 0 | N22: 0 | S22: 36 | T22: 8.50% | V22: =P22*W5*100 -> 0 | W22: =Q22*W5*100 -> 0 | X22: 0 | Y22: =V5+X22 -> 22
J23: =H23*Y5+I23 -> 0 | N23: 0 | S23: 36.50 | T23: 0.08 | V23: =P23*W5*100 -> 0 | W23: =Q23*W5*100 -> 0 | X23: 0 | Y23: =V5+X23 -> 22
J24: =H24*Y5+I24 -> 0 | N24: 0 | S24: 37 | T24: 7.50% | V24: =P24*W5*100 -> 0 | W24: =Q24*W5*100 -> 0 | X24: 0 | Y24: =V5+X24 -> 22
J25: =H25*Y5+I25 -> 0 | N25: 0 | S25: 38 | T25: 7.00% | V25: =P25*W5*100 -> 0 | W25: =Q25*W5*100 -> 0 | X25: 0 | Y25: =V5+X25 -> 22
J26: =H26*Y5+I26 -> 0 | N26: 0 | V26: =P26*W5*100 -> 0 | W26: =Q26*W5*100 -> 0 | X26: 0 | Y26: =V5+X26 -> 22
J27: =H27*Y5+I27 -> 0 | N27: 0 | V27: =P27*W5*100 -> 0 | W27: =Q27*W5*100 -> 0 | X27: 0 | Y27: =V5+X27 -> 22
J28: =H28*Y5+I28 -> 0 | N28: 0 | V28: =P28*W5*100 -> 0 | W28: =Q28*W5*100 -> 0 | X28: 0 | Y28: =V5+X28 -> 22
J29: =H29*Y5+I29 -> 0 | N29: 0 | V29: =P29*W5*100 -> 0 | W29: =Q29*W5*100 -> 0 | X29: 0 | Y29: =V5+X29 -> 22
J30: =H30*Y5+I30 -> 0 | N30: 0 | V30: =P30*W5*100 -> 0 | W30: =Q30*W5*100 -> 0 | X30: 0 | Y30: =V5+X30 -> 22
J31: =H31*Y5+I31 -> 0 | N31: 0 | V31: =P31*W5*100 -> 0 | W31: =Q31*W5*100 -> 0 | X31: 0 | Y31: =V5+X31 -> 22
J32: =H32*Y5+I32 -> 0 | N32: 0 | V32: =P32*W5*100 -> 0 | W32: =Q32*W5*100 -> 0 | X32: 0 | Y32: =V5+X32 -> 22
J33: =H33*Y5+I33 -> 0 | N33: 0 | V33: =P33*W5*100 -> 0 | W33: =Q33*W5*100 -> 0 | X33: 0 | Y33: =V5+X33 -> 22
J34: =H34*Y5+I34 -> 0 | N34: 0 | V34: =P34*W5*100 -> 0 | W34: =Q34*W5*100 -> 0 | X34: 0 | Y34: =V5+X34 -> 22
J35: =H35*Y5+I35 -> 0 | N35: 0 | V35: =P35*W5*100 -> 0 | W35: =Q35*W5*100 -> 0 | X35: 0 | Y35: =V5+X35 -> 22
J36: =H36*Y5+I36 -> 0 | N36: 0 | V36: =P36*W5*100 -> 0 | W36: =Q36*W5*100 -> 0 | X36: 0 | Y36: =V5+X36 -> 22
J37: =H37*Y5+I37 -> 0 | N37: 0 | V37: =P37*W5*100 -> 0 | W37: =Q37*W5*100 -> 0 | X37: 0 | Y37: =V5+X37 -> 22

Sheet 2-2016
A1: Vozač | B1: Slobodan | C1: BH1954563DE | E1: Mjesec | F1: 2 | G1: 2016 | M1: =X5 -> 22.80555556 | W1: 32 | X1: Unos maksimalne potrošnje lit/100
O3: Prosjek | P3: Prosjek | Q3: Prosjek
A4: SALDO: | B4: =IF(C4-D4-E4-F4-G4,C4-D4-E4-F4-G4,"0.00") -> 0.00 | C4: =SUM(C7:C37) -> 0 | D4: =SUM(D7:D37) -> 0 | E4: =SUM(E7:E37) -> 0 | F4: =SUM(F7:F37) -> 0 | G4: =SUM(G7:G37) -> 0 | H4: CENA PREVOZA | K4: Ukupno goriva | L4: =SUM(K7:K37) -> 200 | M4: Ukupno pređeno kilometara | N4: =SUM(N7:N37) -> 1100 | O4: =L4*100/N4 -> 18.18181818 | P4: =AVERAGEIF(P7:P37, "<>0") -> 11 | Q4: =AVERAGEIF(Q7:Q37, "<>0") -> 3.5 | U4: Pros. obe ture tonaza | V4: Unos optim.potrosnje | W4: Kooficijent po toni | X4: Ukupn.Prosjek potrošnje lit/100 | Y4: Valuta EUR
H5: =SUM(H7:H37) -> 0 | I5: =SUM(I7:I37) -> 0 | J5: =SUM(J7:J37) -> 0 | S5: 0.1 | U5: =AVERAGE(P4,Q4) -> 7.25 | V5: 22 | W5: 0.005 | X5: =AVERAGE(Y7:Y15) -> 22.80555556 | Y5: 1.95583
A6: Datum | B6: Vrsta prihoda-rashoda | C6: PRIHOD | D6: RASHOD KM | E6: Nagrade | F6: Prekovrem.rad | G6: Plata | H6: EUR | I6: KM | J6: Ukupno KM | K6: Količina Lit | L6: Početno stanje Km | M6: Završno stanje Km | N6: Ukupno Km | O6: Lit/100 | P6: Tonaza u polasku | Q6: Tonaza u povratku | S6: lit/100 | T6: % | U6: Osnova za platu | V6: Gorivi po toni/polazak | W6: Gorivi po toni/povratak | X6: Prosjek za obracun | Y6: Gorivi pol/pov po turi
J7: =H7*Y5+I7 -> 0 | K7: 200 | L7: 100 | M7: 1200 | N7: =M7-L7 -> 1100 | O7: =IFERROR(K7*100/N7," ") -> 18.18181818 | P7: 10 | Q7: 3 | S7: 28.00 | T7: 0.14 | U7: =J7*S5 -> 0 | V7: =P7*W5*100 -> 5 | W7: =Q7*W5*100 -> 1.5 | X7: =AVERAGE(V7,W7) -> 3.25 | Y7: =V5+X7 -> 25.25
J8: =H8*Y5+I8 -> 0 | N8: =M8-L8 -> 0 | P8: 12 | Q8: 4 | S8: 28.50 | T8: 13.50% | U8: =J8*S5 -> 0 | V8: =P8*W5*100 -> 6 | W8: =Q8*W5*100 -> 2 | X8: =AVERAGE(V8,W8) -> 4 | Y8: =V5+X8 -> 26
J9: =H9*Y5+I9 -> 0 | N9: =M9-L9 -> 0 | S9: 29 | T9: 0.13 | V9: =P9*W5*100 -> 0 | W9: =Q9*W5*100 -> 0 | X9: =AVERAGE(V9,W9) -> 0 | Y9: =V5+X9 -> 22
J10: =H10*Y5+I10 -> 0 | N10: 0 | S10: 29.50 | T10: 12.20% | V10: =P10*W5*100 -> 0 | W10: =Q10*W5*100 -> 0 | X10: =AVERAGE(V10,W10) -> 0 | Y10: =V5+X10 -> 22
J11: =H11*Y5+I11 -> 0 | N11: 0 | S11: 30 | T11: 11.8% | V11: =P11*W5*100 -> 0 | W11: =Q11*W5*100 -> 0 | X11: 0 | Y11: =V5+X11 -> 22
J12: =H12*Y5+I12 -> 0 | N12: 0 | S12: 31 | T12: 11.3% | V12: =P12*W5*100 -> 0 | W12: =Q12*W5*100 -> 0 | X12: 0 | Y12: =V5+X12 -> 22
J13: =H13*Y5+I13 -> 0 | N13: 0 | S13: 31.50 | T13: 0.11 | V13: =P13*W5*100 -> 0 | W13: =Q13*W5*100 -> 0 | X13: 0 | Y13: =V5+X13 -> 22
J14: =H14*Y5+I14 -> 0 | N14: 0 | S14: 32 | T14: 10.80% | V14: =P14*W5*100 -> 0 | W14: =Q14*W5*100 -> 0 | X14: 0 | Y14: =V5+X14 -> 22
J15: =H15*Y5+I15 -> 0 | N15: 0 | S15: 32.50 | T15: 10.30% | V15: =P15*W5*100 -> 0 | W15: =Q15*W5*100 -> 0 | X15: 0 | Y15: =V5+X15 -> 22
J16: =H16*Y5+I16 -> 0 | N16: 0 | S16: 33 | T16: 10.20% | V16: =P16*W5*100 -> 0 | W16: =Q16*W5*100 -> 0 | X16: 0 | Y16: =V5+X16 -> 22
J17: =H17*Y5+I17 -> 0 | N17: 0 | S17: 33.50 | T17: 0.1 | V17: =P17*W5*100 -> 0 | W17: =Q17*W5*100 -> 0 | X17: 0 | Y17: =V5+X17 -> 22
J18: =H18*Y5+I18 -> 0 | N18: 0 | S18: 34 | T18: 9.80% | V18: =P18*W5*100 -> 0 | W18: =Q18*W5*100 -> 0 | X18: 0 | Y18: =V5+X18 -> 22
J19: =H19*Y5+I19 -> 0 | N19: 0 | S19: 34.50 | T19: 9.60% | V19: =P19*W5*100 -> 0 | W19: =Q19*W5*100 -> 0 | X19: 0 | Y19: =V5+X19 -> 22
J20: =H20*Y5+I20 -> 0 | N20: 0 | S20: 35 | T20: 9.30% | V20: =P20*W5*100 -> 0 | W20: =Q20*W5*100 -> 0 | X20: 0 | Y20: =V5+X20 -> 22
J21: =H21*Y5+I21 -> 0 | N21: 0 | S21: 35.50 | T21: 9.00% | V21: =P21*W5*100 -> 0 | W21: =Q21*W55*100 -> 0 | X21: 0 | Y21: =V5+X21 -> 22
J22: =H22*Y5+I22 -> 0 | N22: 0 | S22: 36 | T22: 8.50% | V22: =P22*W5*100 -> 0 | W22: =Q22*W5*100 -> 0 | X22: 0 | Y22: =V5+X22 -> 22
J23: =H23*Y5+I23 -> 0 | N23: 0 | S23: 36.50 | T23: 0.08 | V23: =P23*W5*100 -> 0 | W23: =Q23*W5*100 -> 0 | X23: 0 | Y23: =V5+X23 -> 22
J24: =H24*Y5+I24 -> 0 | N24: 0 | S24: 37 | T24: 7.50% | V24: =P24*W5*100 -> 0 | W24: =Q24*W5*100 -> 0 | X24: 0 | Y24: =V5+X24 -> 22
J25: =H25*Y5+I25 -> 0 | N25: 0 | S25: 38 | T25: 7.00% | V25: =P25*W5*100 -> 0 | W25: =Q25*W5*100 -> 0 | X25: 0 | Y25: =V5+X25 -> 22
J26: =H26*Y5+I26 -> 0 | N26: 0 | V26: =P26*W5*100 -> 0 | W26: =Q26*W5*100 -> 0 | X26: 0 | Y26: =V5+X26 -> 22
J27: =H27*Y5+I27 -> 0 | N27: 0 | V27: =P27*W5*100 -> 0 | W27: =Q27*W5*100 -> 0 | X27: 0 | Y27: =V5+X27 -> 22
J28: =H28*Y5+I28 -> 0 | N28: 0 | V28: =P28*W5*100 -> 0 | W28: =Q28*W5*100 -> 0 | X28: 0 | Y28: =V5+X28 -> 22
J29: =H29*Y5+I29 -> 0 | N29: 0 | V29: =P29*W5*100 -> 0 | W29: =Q29*W5*100 -> 0 | X29: 0 | Y29: =V5+X29 -> 22
J30: =H30*Y5+I30 -> 0 | N30: 0 | V30: =P30*W5*100 -> 0 | W30: =Q30*W5*100 -> 0 | X30: 0 | Y30: =V5+X30 -> 22
J31: =H31*Y5+I31 -> 0 | N31: 0 | V31: =P31*W5*100 -> 0 | W31: =Q31*W5*100 -> 0 | X31: 0 | Y31: =V5+X31 -> 22
J32: =H32*Y5+I32 -> 0 | N32: 0 | V32: =P32*W5*100 -> 0 | W32: =Q32*W5*100 -> 0 | X32: 0 | Y32: =V5+X32 -> 22
J33: =H33*Y5+I33 -> 0 | N33: 0 | V33: =P33*W5*100 -> 0 | W33: =Q33*W5*100 -> 0 | X33: 0 | Y33: =V5+X33 -> 22
J34: =H34*Y5+I34 -> 0 | N34: 0 | V34: =P34*W5*100 -> 0 | W34: =Q34*W5*100 -> 0 | X34: 0 | Y34: =V5+X34 -> 22
J35: =H35*Y5+I35 -> 0 | N35: 0 | V35: =P35*W5*100 -> 0 | W35: =Q35*W5*100 -> 0 | X35: 0 | Y35: =V5+X35 -> 22
J36: =H36*Y5+I36 -> 0 | N36: 0 | V36: =P36*W5*100 -> 0 | W36: =Q36*W5*100 -> 0 | X36: 0 | Y36: =V5+X36 -> 22
J37: =H37*Y5+I37 -> 0 | N37: 0 | V37: =P37*W5*100 -> 0 | W37: =Q37*W5*100 -> 0 | X37: 0 | Y37: =V5+X37 -> 22

Sheet 3-2016
A1: 2016 | G1: =R5 -> 22.36111111 | Q1: 32 | R1: Unos maksimalne potrošnje lit/100
I3: Prosjek | J3: Prosjek | K3: Prosjek
B4: CENA PREVOZA | E4: Ukupno goriva | F4: =SUM(E7:E37) -> 300 | G4: Ukupno pređeno kilometara | H4: =SUM(H7:H37) -> 1200 | I4: =F4*100/H4 -> 25 | J4: =AVERAGEIF(J7:J37, "<>0") -> 10 | K4: =AVERAGEIF(K7:K37, "<>0") -> 3 | O4: Pros. obe ture tonaza | P4: Unos optim.potrosnje | Q4: Kooficijent po toni | R4: Ukupn.Prosjek potrošnje lit/100 | S4: Valuta EUR
B5: =SUM(B7:B37) -> 300 | C5: =SUM(C7:C37) -> 200 | D5: =SUM(D7:D37) -> 786.749 | O5: =AVERAGE(J4,K4) -> 6.5 | P5: 22 | Q5: 0.005 | R5: =AVERAGE(S7:S15) -> 22.36111111 | S5: 1.95583
A6: Plata | B6: EUR | C6: KM | D6: Ukupno KM | E6: Količina Lit | F6: Početno stanje Km | G6: Završno stanje Km | H6: Ukupno Km | I6: Lit/100 | J6: Tonaza u polasku | K6: Tonaza u povratku | M6: lit/100 | N6: % | O6: Osnova za platu | P6: Gorivi po toni/polazak | Q6: Gorivi po toni/povratak | R6: Prosjek za obracun | S6: Gorivi pol/pov po turi
B7: 300 | C7: 200 | D7: =B7*S5+C7 -> 786.749 | E7: 300 | F7: 100 | G7: 1300 | H7: =G7-F7 -> 1200 | I7: =IFERROR(E7*100/H7," ") -> 25 | J7: 10 | K7: 3 | L7: =VLOOKUP($I7,$M$7:$N$25,2,TRUE) -> 14 | M7: 0 | N7: 14 | O7: =D7*M5 -> 0 | P7: =J7*Q5*100 -> 5 | Q7: =K7*Q5*100 -> 1.5 | R7: =AVERAGE(P7,Q7) -> 3.25 | S7: =P5+R7 -> 25.25
D8: =B8*S5+C8 -> 0 | H8: =G8-F8 -> 0 | M8: 28 | N8: 13.5 | O8: =D8*M5 -> 0 | P8: =J8*Q5*100 -> 0 | Q8: =K8*Q5*100 -> 0 | R8: =AVERAGE(P8,Q8) -> 0 | S8: =P5+R8 -> 22
D9: =B9*S5+C9 -> 0 | H9: =G9-F9 -> 0 | M9: 28.5 | N9: 13 | P9: =J9*Q5*100 -> 0 | Q9: =K9*Q5*100 -> 0 | R9: =AVERAGE(P9,Q9) -> 0 | S9: =P5+R9 -> 22
D10: =B10*S5+C10 -> 0 | H10: 0 | M10: 29 | N10: 12.2 | P10: =J10*Q5*100 -> 0 | Q10: =K10*Q5*100 -> 0 | R10: =AVERAGE(P10,Q10) -> 0 | S10: =P5+R10 -> 22
D11: =B11*S5+C11 -> 0 | H11: 0 | M11: 29.5 | N11: 11.8 | P11: =J11*Q5*100 -> 0 | Q11: =K11*Q5*100 -> 0 | R11: 0 | S11: =P5+R11 -> 22
D12: =B12*S5+C12 -> 0 | H12: 0 | M12: 30 | N12: 11.3 | P12: =J12*Q5*100 -> 0 | Q12: =K12*Q5*100 -> 0 | R12: =AVERAGE(P12,Q12) -> 0 | S12: =P5+R12 -> 22
D13: =B13*S5+C13 -> 0 | H13: 0 | M13: 31 | N13: 11 | P13: =J13*Q5*100 -> 0 | Q13: =K13*Q5*100 -> 0 | R13: 0 | S13: =P5+R13 -> 22
D14: =B14*S5+C14 -> 0 | H14: 0 | M14: 31.5 | N14: 10.8 | P14: =J14*Q5*100 -> 0 | Q14: =K14*Q5*100 -> 0 | R14: 0 | S14: =P5+R14 -> 22
D15: =B15*S5+C15 -> 0 | H15: 0 | M15: 32 | N15: 10.3 | P15: =J15*Q5*100 -> 0 | Q15: =K15*Q5*100 -> 0 | R15: 0 | S15: =P5+R15 -> 22
D16: =B16*S5+C16 -> 0 | H16: 0 | M16: 32.5 | N16: 10.2 | P16: =J16*Q5*100 -> 0 | Q16: =K16*Q5*100 -> 0 | R16: 0 | S16: =P5+R16 -> 22
D17: =B17*S5+C17 -> 0 | H17: 0 | M17: 33 | N17: 10 | P17: =J17*Q5*100 -> 0 | Q17: =K17*Q5*100 -> 0 | R17: 0 | S17: =P5+R17 -> 22
D18: =B18*S5+C18 -> 0 | H18: 0 | M18: 33.5 | N18: 9.8 | P18: =J18*Q5*100 -> 0 | Q18: =K18*Q5*100 -> 0 | R18: 0 | S18: =P5+R18 -> 22
D19: =B19*S5+C19 -> 0 | H19: 0 | M19: 34 | N19: 9.6 | P19: =J19*Q5*100 -> 0 | Q19: =K19*Q5*100 -> 0 | R19: 0 | S19: =P5+R19 -> 22
D20: =B20*S5+C20 -> 0 | H20: 0 | M20: 34.5 | N20: 9.3 | P20: =J20*Q5*100 -> 0 | Q20: =K20*Q5*100 -> 0 | R20: 0 | S20: =P5+R20 -> 22
D21: =B21*S5+C21 -> 0 | H21: 0 | M21: 35 | N21: 9 | P21: =J21*Q5*100 -> 0 | Q21: =K21*Q55*100 -> 0 | R21: 0 | S21: =P5+R21 -> 22
D22: =B22*S5+C22 -> 0 | H22: 0 | M22: 35.5 | N22: 8.5 | P22: =J22*Q5*100 -> 0 | Q22: =K22*Q5*100 -> 0 | R22: 0 | S22: =P5+R22 -> 22
D23: =B23*S5+C23 -> 0 | H23: 0 | M23: 36 | N23: 8 | P23: =J23*Q5*100 -> 0 | Q23: =K23*Q5*100 -> 0 | R23: 0 | S23: =P5+R23 -> 22
D24: =B24*S5+C24 -> 0 | H24: 0 | M24: 36.5 | N24: 7.5 | P24: =J24*Q5*100 -> 0 | Q24: =K24*Q5*100 -> 0 | R24: 0 | S24: =P5+R24 -> 22
D25: =B25*S5+C25 -> 0 | H25: 0 | M25: 37 | N25: 7 | P25: =J25*Q5*100 -> 0 | Q25: =K25*Q5*100 -> 0 | R25: 0 | S25: =P5+R25 -> 22
D26: =B26*S5+C26 -> 0 | H26: 0 | P26: =J26*Q5*100 -> 0 | Q26: =K26*Q5*100 -> 0 | R26: 0 | S26: =P5+R26 -> 22
D27: =B27*S5+C27 -> 0 | H27: 0 | P27: =J27*Q5*100 -> 0 | Q27: =K27*Q5*100 -> 0 | R27: 0 | S27: =P5+R27 -> 22
D28: =B28*S5+C28 -> 0 | H28: 0 | P28: =J28*Q5*100 -> 0 | Q28: =K28*Q5*100 -> 0 | R28: 0 | S28: =P5+R28 -> 22
D29: =B29*S5+C29 -> 0 | H29: 0 | P29: =J29*Q5*100 -> 0 | Q29: =K29*Q5*100 -> 0 | R29: 0 | S29: =P5+R29 -> 22
D30: =B30*S5+C30 -> 0 | H30: 0 | P30: =J30*Q5*100 -> 0 | Q30: =K30*Q5*100 -> 0 | R30: 0 | S30: =P5+R30 -> 22
D31: =B31*S5+C31 -> 0 | H31: 0 | P31: =J31*Q5*100 -> 0 | Q31: =K31*Q5*100 -> 0 | R31: 0 | S31: =P5+R31 -> 22
D32: =B32*S5+C32 -> 0 | H32: 0 | P32: =J32*Q5*100 -> 0 | Q32: =K32*Q5*100 -> 0 | R32: 0 | S32: =P5+R32 -> 22
D33: =B33*S5+C33 -> 0 | H33: 0 | P33: =J33*Q5*100 -> 0 | Q33: =K33*Q5*100 -> 0 | R33: 0 | S33: =P5+R33 -> 22
D34: =B34*S5+C34 -> 0 | H34: 0 | P34: =J34*Q5*100 -> 0 | Q34: =K34*Q5*100 -> 0 | R34: 0 | S34: =P5+R34 -> 22
D35: =B35*S5+C35 -> 0 | H35: 0 | P35: =J35*Q5*100 -> 0 | Q35: =K35*Q5*100 -> 0 | R35: 0 | S35: =P5+R35 -> 22
D36: =B36*S5+C36 -> 0 | H36: 0 | P36: =J36*Q5*100 -> 0 | Q36: =K36*Q5*100 -> 0 | R36: 0 | S36: =P5+R36 -> 22
D37: =B37*S5+C37 -> 0 | H37: 0 | P37: =J37*Q5*100 -> 0 | Q37: =K37*Q5*100 -> 0 | R37: 0 | S37: =P5+R37 -> 22
